bitfinex/quotes_ETHUSD_20240719
["timestamp","ask_amount","ask_price","bid_price","bid_amount"]
[1721348458492,6.07623241,3415.3,3413.5,0.60956834]
[1721348458493,2.92824,3415.1,3413.7,2.92929]
[1721348458750,2.9292,3413.9,3413.0,2.3615]
[1721348458989,0.04772877,3413.9,3413.4,2.92962]
[1721348459244,2.92954,3413.5,3412.9,0.1493441]
[1721348459394,2.51,3413.4,3412.9,0.1493441]
[1721348459599,0.04725089,3413.4,3412.9,0.1493441]
[1721348459833,2.92929,3413.8,3413.1,2.92988]
[1721348460094,0.04721112,3413.3,3413.1,2.92988]
[1721348460414,0.04717772,3413.2,3413.0,2.4688]
[1721348460588,2.92946,3413.6,3413.0,2.4688]
[1721348460807,0.046767,3413.1,3412.9,0.1493441]
[1721348461011,0.05891229,3413.5,3412.9,0.1493441]
[1721348461012,2.92972,3413.3,3412.9,0.1493441]
[1721348461218,0.0467336,3413.0,3412.9,0.1493441]
[1721348461417,2.92997,3413.0,3412.9,0.1493441]
[1721348461622,2.9766808,3413.0,3412.9,0.1493441]
[1721348461815,6.07732988,3413.0,3412.9,0.1493441]
[1721348462009,9.00729988,3413.0,3412.9,0.1493441]
[1721348462236,12.00729988,3413.0,3412.9,0.1493441]
[1721348463205,14.93726988,3413.0,3412.9,0.1493441]
[1721348463603,12.00729988,3413.0,3412.9,0.1493441]
[1721348464706,0.0467108,3413.0,3412.9,0.1493441]
[1721348465000,0.0467108,3413.0,3412.9,3.0793941]
[1721348465283,7.42,3413.6,3412.9,3.0793941]
[1721348465284,7.42,3413.6,3413.1,2.92982]
[1721348465689,2.92963,3413.4,3412.9,0.1493441]
[1721348465706,2.92988,3413.1,3412.9,0.1493441]
[1721348465910,3.83163652,3413.1,3412.9,0.1493441]
[1721348466027,2.92997,3413.0,3412.9,0.1493441]
[1721348466257,5.85994,3413.0,3412.9,0.1493441]
[1721348466558,8.85994,3413.0,3412.9,0.1493441]
[1721348467261,15.42491,3413.0,3412.9,0.1493441]
[1721348467549,2.9308,3412.1,3411.6,0.00085322]
[1721348467750,2.98979229,3412.0,3411.6,0.00085322]
[1721348467925,2.51,3411.8,3411.6,0.00085322]
[1721348468350,5.92109229,3411.7,3411.6,0.00085322]
[1721348468490,10.85789423,3411.7,3411.6,0.00085322]
[1721348468631,10.90382304,3411.7,3411.6,0.00085322]
[1721348469242,10.90382304,3411.7,3409.2,3.085]
[1721348469243,5.04164304,3411.7,3408.9,2.3824]
[1721348469467,5.44209,3410.6,3409.9,2.93263]
[1721348469650,5.44209,3410.6,3408.9,2.3824]
[1721348469651,2.51,3410.6,3408.9,2.3824]
[1721348469850,0.04359673,3410.5,3408.9,5.31582]
[1721348470036,0.04359673,3410.5,3410.0,2.93249]
[1721348470251,0.04359673,3410.5,3409.4,3.0823641]
[1721348470252,0.04218502,3410.4,3409.4,0.1493441]
[1721348470431,3.0,3410.6,3410.1,2.93246]
[1721348470773,5.26488,3411.8,3410.1,2.93246]
[1721348470774,0.04215156,3410.3,3410.2,5.86474]
[1721348470996,3.0,3411.1,3410.4,2.93216]
[1721348471193,3.0,3411.5,3410.2,0.05864163]
[1721348471358,3.0,3411.5,3410.1,2.4848]
[1721348471359,3.0,3411.6,3410.1,2.4848]
[1721348471672,0.45954349,3411.2,3410.5,2.93212]
[1721348472076,0.45954349,3411.2,3411.1,2.9316]
[1721348472274,3.375,3412.2,3411.1,2.9316]
[1721348472275,2.931,3411.8,3411.1,2.9316]
[1721348472496,0.03824589,3411.2,3411.1,2.9316]
[1721348472769,3.39060798,3411.7,3411.1,2.9316]
[1721348472970,0.03824589,3411.2,3411.1,2.9316]
[1721348473143,0.45951798,3411.7,3411.2,2.4157]
[1721348473573,0.45951798,3411.7,3411.6,2.93117]
[1721348474083,0.45951798,3411.7,3411.6,5.86234]
[1721348474310,0.45951798,3411.7,3411.6,2.93117]
[1721348474952,0.45951798,3411.7,3411.6,5.86234]
[1721348475285,7.42,3412.6,3412.1,2.93069]
[1721348475445,2.9302,3412.8,3412.1,2.93069]
[1721348475673,2.9302,3412.8,3412.2,2.93065]
[1721348476081,0.03740512,3412.7,3412.2,2.93065]
[1721348476270,3.03740512,3412.7,3412.3,2.93057]
[1721348476465,3.0,3412.6,3412.3,2.93057]
[1721348476713,2.41972842,3413.0,3411.7,2.93107]
[1721348476994,5.4737,3413.8,3412.5,8.7912]
[1721348476995,0.03739045,3412.6,3412.5,8.7912]
[1721348477148,2.92938,3413.7,3413.0,2.92995]
[1721348478080,2.92946,3413.6,3413.0,2.92995]
[1721348478310,2.92921,3413.9,3412.4,2.4068]
[1721348478468,10.34894,3414.2,3413.1,2.92982]
[1721348478666,10.34894,3414.2,3412.6,2.93027]
[1721348478667,2.92921,3413.9,3413.2,2.92979]
[1721348479058,3.0,3413.8,3413.2,2.92979]
[1721348479385,3.0,3413.8,3412.4,5.33726]
[1721348479386,0.05891229,3413.7,3412.4,5.33726]
[1721348479613,2.92982,3413.2,3412.5,2.93033]
[1721348479762,0.05891229,3413.1,3412.6,2.93029]
[1721348480104,2.96288624,3413.0,3412.3,2.93056]
[1721348480385,0.05891229,3412.9,3412.3,2.93056]
[1721348480597,0.05891229,3412.9,3412.5,2.93038]
[1721348480894,0.03286624,3413.0,3412.2,2.93065]
[1721348480895,2.96294945,3412.8,3412.2,2.93065]
[1721348481072,0.03279945,3412.8,3412.3,2.93056]
[1721348481274,2.98888229,3413.0,3412.3,2.93056]
[1721348481275,0.05891229,3413.0,3412.4,2.93042]
[1721348481474,0.05891229,3413.0,3411.9,2.353]
[1721348481475,0.03263511,3412.7,3411.9,2.353]
[1721348481643,0.59184123,3413.1,3412.1,2.93071]
[1721348481844,0.59184123,3413.1,3412.7,2.93017]
[1721348482053,0.59184123,3413.1,3412.5,2.93036]
[1721348482258,0.59184123,3413.1,3412.2,2.93063]
[1721348482259,6.52174123,3413.1,3412.2,2.93063]
[1721348482485,3.95217412,3413.0,3412.4,2.93043]
[1721348482793,3.95217412,3413.0,3412.5,2.93038]
[1721348483180,0.95217412,3413.0,3412.5,2.93038]
[1721348483367,0.03271331,3412.9,3412.5,2.93038]
[1721348483788,0.03271331,3412.9,3412.3,2.93056]
[1721348484095,4.07636318,3412.9,3412.3,2.93056]
[1721348484661,4.07636318,3412.9,3412.4,2.93048]
[1721348484863,7.00642318,3412.9,3412.2,2.93065]
[1721348485180,7.00642318,3412.9,3412.0,2.93077]
[1721348485181,2.9303,3412.7,3412.0,2.93077]
[1721348485306,5.93033,3412.6,3411.8,2.93097]
[1721348485711,5.93033,3412.6,3411.9,2.9309]
[1721348485712,0.89512503,3412.5,3411.9,2.9309]
[1721348485751,0.92656259,3412.5,3411.9,2.9309]
[1721348486028,0.92656259,3412.5,3412.0,2.93082]
[1721348486280,0.03143756,3412.5,3412.4,2.93048]
[1721348486402,0.45931213,3413.1,3412.9,2.92998]
[1721348486596,0.45931213,3413.1,3413.0,2.92997]
[1721348486904,10.34903,3414.1,3413.5,2.92949]
[1721348487194,2.92903,3414.1,3413.5,2.92949]
[1721348487393,2.92911,3414.0,3413.3,2.92963]
[1721348487708,7.42,3414.6,3412.9,2.93004]
[1721348487709,0.05891229,3413.9,3412.9,2.93004]
[1721348487998,6.37191252,3413.9,3412.6,2.9303]
[1721348488163,6.37191252,3413.9,3412.2,2.9306]
[1721348488164,2.93009,3412.9,3412.2,2.9306]
[1721348488361,0.05891229,3412.8,3412.0,2.93076]
[1721348488583,2.93023,3412.7,3412.1,2.93074]
[1721348488786,0.05891229,3412.6,3412.1,2.93074]
[1721348489394,0.05891229,3412.6,3412.2,2.93065]
[1721348489595,2.93009,3412.9,3412.3,2.93056]
[1721348489596,3.0,3412.8,3412.3,2.93056]
[1721348489802,3.89189123,3412.8,3412.3,2.93056]
[1721348490001,5.79356407,3413.0,3412.3,2.93056]
[1721348490214,2.93014,3412.8,3412.2,2.93065]
[1721348490407,2.93023,3412.7,3412.0,2.93082]
[1721348490582,2.95876701,3412.6,3412.0,2.93082]
[1721348491108,2.9304,3412.5,3412.0,2.93082]
[1721348491285,2.93049,3412.4,3411.8,2.93098]
[1721348491491,0.02774419,3412.4,3411.9,2.93091]
[1721348491780,0.02774419,3412.4,3412.1,2.93074]
[1721348492188,2.93026,3412.7,3412.1,2.93074]
[1721348492189,3.0,3412.6,3412.1,2.93074]
[1721348492512,0.02816243,3412.5,3411.9,2.93091]
[1721348492708,0.02816243,3412.5,3412.0,2.93083]
[1721348493714,0.02816243,3412.5,3412.4,2.93048]
[1721348493888,0.02816243,3412.5,3412.4,5.86096]
[1721348494088,7.42,3413.4,3413.1,2.92982]
[1721348494277,2.92929,3413.8,3413.1,2.92982]
[1721348494771,7.71880023,3413.9,3413.6,2.92945]
[1721348494987,10.34882,3414.4,3413.7,2.9293]
[1721348495181,2.92882,3414.4,3413.7,2.9293]
[1721348495409,2.92869,3414.5,3413.8,2.92926]
[1721348495712,0.45920685,3414.8,3414.1,2.92896]
[1721348496118,10.34837,3414.9,3414.1,2.92896]
[1721348496319,1.574487,3414.9,3414.5,2.92866]
[1721348496512,2.92808,3415.2,3414.6,2.92859]
[1721348497201,2.92808,3415.2,3414.4,2.92871]
[1721348497521,2.92818,3415.1,3414.4,2.92871]
[1721348497819,2.95850776,3415.1,3414.4,2.92871]
[1721348498114,2.92843,3414.8,3414.1,2.92898]
[1721348498337,0.585668,3414.7,3414.1,2.92898]
[1721348498477,3.54436183,3414.7,3414.1,2.92898]
[1721348498675,0.61584183,3414.7,3413.7,2.92931]
[1721348498878,0.61584183,3414.7,3413.6,2.92937]
[1721348498879,2.92883,3414.4,3413.8,2.92928]
[1721348499084,0.03013534,3414.6,3413.9,2.92919]
[1721348499277,0.03001986,3414.3,3414.1,2.92901]
[1721348499488,3.0,3414.6,3414.2,2.92888]
[1721348499698,0.585668,3414.7,3414.2,2.92888]
[1721348500018,0.585668,3414.7,3414.3,2.92885]
[1721348500520,0.585668,3414.7,3414.1,2.929]
[1721348500687,0.6514108,3414.6,3414.2,2.92892]
[1721348501712,0.6514108,3414.6,3414.0,2.9291]
[1721348501960,3.5800608,3414.6,3414.0,2.9291]
[1721348502227,3.0,3414.5,3414.1,2.929]
[1721348502586,0.6514108,3414.6,3414.4,2.92871]
[1721348502587,3.6514108,3414.6,3414.4,2.92871]
[1721348502822,5.92817,3415.1,3414.4,2.92871]
[1721348503027,10.795,3415.3,3413.5,3.53906834]
[1721348503028,7.42,3415.3,3414.3,0.05857639]
[1721348503192,2.92796,3415.4,3414.6,2.92852]
[1721348503595,2.92798,3415.4,3414.2,2.92892]
[1721348503955,13.72265,3415.8,3414.2,2.92892]
[1721348503956,2.92839,3414.9,3414.3,2.92885]
[1721348505063,2.9282,3415.1,3414.4,2.92877]
[1721348505216,2.92832,3415.0,3414.4,2.92877]
[1721348505419,0.292798,3415.3,3414.8,2.92842]
[1721348505654,0.292798,3415.3,3414.6,2.92859]
[1721348505850,3.5502038,3415.2,3414.6,2.92859]
[1721348506153,3.0,3415.1,3414.6,2.92859]
[1721348506731,5.92819,3415.1,3414.6,2.92859]
[1721348507123,3.0,3415.1,3414.6,2.92859]
[1721348507336,6.5501638,3415.2,3414.6,2.92859]
[1721348507534,3.90527018,3415.1,3414.6,2.92859]
[1721348507724,0.97709018,3415.1,3414.6,2.92859]
[1721348508842,0.97709018,3415.1,3414.5,2.92867]
[1721348509026,5.9277,3415.7,3413.9,2.2751]
[1721348509227,2.92816,3415.2,3414.6,2.92852]
[1721348509555,3.0,3415.1,3414.6,2.92855]
[1721348509840,2.92826,3415.0,3414.4,2.9287]
[1721348510047,0.885639,3414.9,3414.4,2.9287]
[1721348510805,0.885639,3414.9,3413.9,2.2751]
[1721348511074,2.4974,3415.4,3413.1,10.39983]
[1721348511075,2.92911,3414.0,3413.3,2.406]
[1721348511269,2.92911,3414.0,3413.5,2.92953]
[1721348511548,2.9289,3414.3,3413.5,2.92953]
[1721348511549,2.92906,3414.1,3413.5,2.92953]
[1721348511703,2.92906,3414.1,3413.3,5.33567]
[1721348511910,3.0,3414.4,3412.9,2.92999]
[1721348511911,2.92945,3413.6,3412.9,2.92999]
[1721348512154,2.92937,3413.7,3412.8,2.93007]
[1721348512155,2.92956,3413.5,3412.8,2.93007]
[1721348512321,2.92946,3413.6,3413.0,2.92997]
[1721348512754,2.92954,3413.5,3413.0,2.92997]
[1721348512963,2.92976,3413.3,3412.7,2.4475]
[1721348513189,0.58594,3413.2,3412.8,2.93012]
[1721348513374,2.92978,3413.3,3412.7,2.4475]
[1721348513529,2.92978,3413.3,3412.7,5.37772]
[1721348514057,3.0,3413.2,3412.6,1.52824725]
[1721348514261,2.92999,3413.0,3412.6,1.52824725]
[1721348515585,2.93017,3412.8,3412.6,1.52824725]
[1721348515898,0.586016,3412.7,3412.6,1.52824725]
[1721348516230,2.92999,3413.0,3412.6,1.52824725]
[1721348516431,2.93006,3412.9,3412.6,1.52824725]
[1721348516631,2.93014,3412.8,3412.6,1.52824725]
[1721348517961,2.92998,3413.0,3412.6,1.52824725]
[1721348518166,3.223058,3412.9,3412.6,1.52824725]
[1721348518465,2.92995,3413.1,3412.6,1.52824725]
[1721348518708,3.0,3413.0,3412.6,1.52824725]
[1721348519238,3.0,3413.3,3412.8,2.93011]
[1721348519444,5.92977,3413.3,3412.6,4.45850725]
[1721348519671,3.0,3413.3,3412.6,4.45850725]
[1721348519854,3.522764,3413.2,3412.6,4.45850725]
[1721348520067,3.0,3413.1,3412.6,4.45848725]
[1721348520241,0.592964,3413.2,3412.6,4.45848725]
[1721348520440,0.592964,3413.2,3412.7,2.93022]
[1721348521249,0.592964,3413.2,3412.9,2.93005]
[1721348521649,2.92954,3413.5,3412.9,2.93005]
[1721348521868,3.0,3413.4,3412.7,2.93022]
[1721348522057,2.92979,3413.3,3412.6,4.45853725]
[1721348522271,5.9298,3413.2,3412.6,4.45853725]
[1721348522581,3.0,3413.4,3412.6,4.45853725]
[1721348522582,3.0,3413.1,3412.7,2.93022]
[1721348522907,7.42,3413.8,3412.7,0.98731572]
[1721348523179,2.92946,3413.6,3413.0,2.92994]
[1721348523381,10.34932,3413.8,3413.0,2.92994]
[1721348523599,8.07157895,3413.8,3413.0,2.92994]
[1721348523785,8.07157895,3413.8,3413.2,2.92972]
[1721348524098,8.07157895,3413.8,3413.3,2.92968]
[1721348524099,3.0,3413.7,3413.3,2.92968]
[1721348524244,3.0,3413.7,3413.1,2.92981]
[1721348524863,3.0,3413.7,3413.2,2.92978]
[1721348525358,3.0,3413.7,3413.3,2.92969]
[1721348525700,18.91,3414.3,3413.7,2.92937]
[1721348525701,10.34888,3414.3,3413.7,2.92937]
[1721348526044,2.9287,3414.5,3413.7,2.92937]
[1721348526236,2.9287,3414.5,3413.5,2.2862]
[1721348526237,7.42,3414.9,3413.5,2.2862]
[1721348526389,0.742,3414.8,3413.6,0.287215]
[1721348526573,0.742,3414.8,3414.3,2.92885]
[1721348526775,3.67043,3414.8,3414.3,2.92885]
[1721348527395,3.67043,3414.8,3414.2,2.92889]
[1721348527899,3.0,3414.7,3414.2,2.92889]
[1721348528087,4.409043,3414.7,3414.2,2.92889]
[1721348528591,7.337573,3414.7,3414.0,2.92906]
[1721348528798,4.409043,3414.7,3413.6,2.92943]
[1721348529103,1.409043,3414.7,3413.5,2.2862]
[1721348529283,3.0,3414.8,3414.4,2.92875]
[1721348529489,3.0,3414.8,3414.3,2.92885]
[1721348529661,2.92822,3415.1,3414.5,2.92862]
[1721348529985,3.0,3415.0,3414.6,2.92859]
[1721348530306,3.0,3415.0,3414.5,2.92862]
[1721348530307,1.334805,3415.0,3414.5,2.92862]
[1721348530604,4.334805,3415.0,3414.5,2.92865]
[1721348530775,1.334805,3415.0,3414.5,2.92865]
[1721348531763,4.263065,3415.0,3414.3,2.92882]
[1721348531964,6.6546965,3414.9,3414.3,2.92882]
[1721348532276,3.7263065,3414.9,3414.3,2.92882]
[1721348532459,3.0,3414.8,3414.6,2.92859]
[1721348532669,4.334805,3415.0,3414.6,2.92859]
[1721348532876,7.42,3415.3,3414.4,2.4172]
[1721348533078,7.42,3415.3,3415.0,2.92819]
[1721348533278,7.42,3415.3,3415.1,2.92816]
[1721348533500,2.92758,3415.8,3415.1,2.92816]
[1721348533811,2.92766,3415.7,3415.1,2.92816]
[1721348534120,4.255284,3415.6,3414.9,2.92827]
[1721348534280,3.0,3415.5,3415.0,2.92825]
[1721348536103,7.42,3415.9,3414.5,2.92864]
[1721348536277,7.42,3415.9,3415.4,2.92785]
[1721348536805,7.42,3415.9,3415.6,2.92773]
[1721348537266,7.42,3415.9,3415.4,2.92785]
[1721348537267,0.45903781,3416.1,3415.4,2.92787]
[1721348537466,0.45903781,3416.1,3415.6,2.92766]
[1721348538013,0.45903781,3416.1,3415.7,2.92765]
[1721348538210,0.45903781,3416.1,3415.9,2.92748]
[1721348539311,0.45903781,3416.1,3415.7,2.92765]
[1721348540174,0.45903781,3416.1,3415.8,2.92756]
[1721348540502,0.45903781,3416.1,3416.0,2.9274]
[1721348541067,0.45903781,3416.1,3416.0,5.8548]
[1721348542004,2.92646,3417.1,3416.4,2.92705]
[1721348542205,2.92646,3417.1,3416.5,2.92695]
[1721348542382,0.72991537,3417.0,3416.5,2.92695]
[1721348542583,3.65645537,3417.0,3416.3,2.92707]
[1721348542895,0.72991537,3417.0,3416.4,2.92705]
[1721348543110,0.72991537,3417.0,3416.5,2.9269]
[1721348544689,0.72991537,3417.0,3416.6,2.92687]
[1721348545026,3.0,3417.1,3416.7,2.92679]
[1721348545197,2.9216,3417.2,3416.9,2.92661]
[1721348545746,2.9216,3417.2,3417.0,2.92654]
[1721348546535,2.9216,3417.2,3417.1,5.8529]
[1721348546608,2.9216,3417.2,3417.1,2.92645]
[1721348548913,2.9216,3417.2,3417.1,5.8529]
[1721348549231,2.9216,3417.2,3417.1,2.92645]
[1721348550222,2.9216,3417.2,3417.1,5.8529]
[1721348551115,2.31093249,3417.2,3417.1,5.8529]
[1721348551921,2.31093249,3417.2,3417.1,8.2939]
[1721348552123,2.31093249,3417.2,3417.1,8.89200805]
[1721348552371,2.31093249,3417.2,3417.1,11.81845805]
[1721348552372,1.225368,3417.2,3417.1,11.81845805]
[1721348552558,1.225368,3417.2,3417.1,14.74490805]
[1721348552704,1.225368,3417.2,3417.1,15.29490805]
[1721348553193,0.54265924,3417.2,3417.1,15.29490805]
[1721348553394,7.42,3418.8,3418.4,2.92534]
[1721348553618,1.034484,3418.7,3418.4,2.92534]
[1721348553850,2.92484,3419.0,3418.4,2.92534]
[1721348555663,7.42,3419.4,3418.7,2.925]
[1721348555817,10.34454,3419.4,3418.8,2.92494]
[1721348556018,7.42,3419.4,3418.9,2.9249]
[1721348557444,2.92441,3419.5,3418.9,2.9249]
[1721348557659,10.795,3420.0,3418.9,2.9249]
[1721348557660,2.92408,3419.9,3418.9,2.9249]
[1721348557856,1.616628,3419.8,3418.9,2.9249]
[1721348558337,4.540838,3419.8,3419.1,2.92472]
[1721348558543,2.92425,3419.7,3419.1,2.92472]
[1721348558853,2.92425,3419.7,3418.9,2.92491]
[1721348558854,2.92447,3419.5,3418.9,2.92491]
[1721348559050,3.0,3419.4,3418.9,2.92491]
[1721348559251,4.184872,3419.4,3419.0,2.92481]
[1721348559462,5.92442,3419.5,3419.0,2.92481]
[1721348559632,5.92442,3419.5,3418.8,2.92494]
[1721348559633,3.0,3419.5,3418.8,2.92494]
[1721348559843,7.42,3420.0,3419.4,2.92441]
[1721348560132,15.825,3420.5,3418.9,2.45739533]
[1721348560133,10.34358,3420.5,3418.9,2.45739533]
[1721348560341,2.92374,3420.3,3419.6,2.92424]
[1721348560547,0.584732,3420.2,3419.6,2.92424]
[1721348560857,2.92358,3420.5,3419.7,2.92415]
[1721348560858,2.92355,3420.5,3419.7,2.92415]
[1721348561164,2.92363,3420.4,3419.8,2.92414]
[1721348561328,2.92346,3420.6,3420.0,2.92396]
[1721348561537,13.71815,3421.0,3420.0,2.92396]
[1721348561764,2.92319,3421.0,3420.2,2.92374]
[1721348561928,0.292319,3420.9,3420.1,2.92383]
[1721348562128,0.292319,3420.9,3420.3,2.92366]
[1721348562331,0.292319,3420.9,3420.4,2.92362]
[1721348562540,0.292319,3420.9,3419.8,5.32297]
[1721348562754,0.292319,3420.9,3420.5,2.92354]
[1721348564155,0.6215359,3420.8,3420.2,2.9238]
[1721348564559,0.6215359,3420.8,3420.3,2.92371]
[1721348564769,0.6215359,3420.8,3420.2,2.9238]
[1721348564770,0.6215359,3420.8,3420.4,2.92361]
[1721348565370,2.92298,3421.2,3418.9,5.92487]
[1721348565371,3.375,3421.5,3420.5,2.4428]
[1721348565616,7.42,3422.7,3420.9,2.92319]
[1721348565914,7.42,3422.7,3420.5,2.4428]
[1721348565915,2.92228,3422.0,3421.2,2.92287]
[1721348566036,2.4436,3422.5,3421.2,2.92287]
[1721348566037,3.214588,3421.9,3421.2,2.92287]
[1721348566288,2.92193,3422.4,3421.2,2.92294]
[1721348566425,2.92193,3422.4,3421.1,2.92302]
[1721348566957,2.92193,3422.4,3421.7,2.92252]
[1721348567553,2.92206,3422.3,3421.7,2.9225]
[1721348567731,0.584398,3422.2,3421.7,2.9225]
[1721348567940,0.584398,3422.2,3421.8,2.92243]
[1721348568137,2.92192,3422.5,3421.8,2.92243]
[1721348568444,2.92192,3422.5,3421.4,2.4174]
[1721348568445,2.92192,3422.5,3421.9,2.92234]
[1721348568870,5.84343,3422.7,3421.9,2.92234]
[1721348569272,2.92176,3422.6,3421.9,2.92234]
[1721348569489,3.375,3422.8,3421.7,2.92246]
[1721348569490,2.92193,3422.4,3421.7,2.92246]
[1721348570281,2.92193,3422.4,3421.8,2.92243]
[1721348571802,2.92193,3422.4,3421.6,5.84514]
[1721348571985,2.92201,3422.3,3421.6,2.92254]
[1721348572367,9.765586,3422.5,3421.7,2.9225]
[1721348572664,3.8985286,3422.4,3421.7,2.9225]
[1721348572853,2.92201,3422.3,3421.7,2.9225]
[1721348573286,0.9765586,3422.4,3420.9,2.3063]
[1721348573488,2.92261,3421.6,3420.9,2.92315]
[1721348573689,3.085,3422.0,3420.4,5.27236]
[1721348573887,2.92319,3421.0,3420.3,2.92363]
[1721348574391,2.92298,3421.2,3420.5,2.92346]
[1721348574583,2.92298,3421.2,3420.3,2.92366]
[1721348574792,0.584578,3421.1,3420.5,2.92349]
[1721348574985,3.0,3421.9,3421.2,2.92288]
[1721348575185,3.0,3421.9,3420.1,2.92388]
[1721348575186,2.92254,3421.7,3421.0,2.92306]
[1721348575389,5.92261,3421.6,3421.0,2.92306]
[1721348575687,3.0,3421.6,3421.2,2.92289]
[1721348575991,3.0,3421.7,3421.2,2.92289]
[1721348576191,0.592247,3421.6,3421.0,2.92305]
[1721348576384,2.92288,3421.3,3420.7,2.92336]
[1721348576959,2.92288,3421.3,3420.5,2.92347]
[1721348577164,2.92305,3421.1,3420.3,2.9237]
[1721348577381,2.92305,3421.1,3420.4,2.92363]
[1721348577587,0.584594,3421.0,3420.6,2.92339]
[1721348577899,2.92278,3421.4,3420.8,2.92326]
[1721348578063,2.92278,3421.4,3420.6,2.9234]
[1721348578266,2.92286,3421.3,3420.6,2.9234]
[1721348578598,2.92301,3421.2,3420.5,2.92349]
[1721348578897,2.92301,3421.2,3420.6,2.92345]
[1721348579069,2.92301,3421.2,3420.5,2.92349]
[1721348579070,0.584579,3421.1,3420.5,2.92349]
[1721348579992,0.584579,3421.1,3420.5,2.92346]
[1721348580387,0.592247,3421.6,3420.9,2.92315]
[1721348580698,3.514867,3421.6,3420.4,2.92356]
[1721348580893,3.514867,3421.6,3420.9,2.92313]
[1721348581096,2.92269,3421.5,3420.7,2.92333]
[1721348581667,2.92287,3421.3,3420.7,2.92333]
[1721348581871,0.584556,3421.2,3420.7,2.92333]
[1721348582600,0.584556,3421.2,3420.1,2.92381]
[1721348582601,2.92311,3421.1,3420.1,2.92385]
[1721348582790,2.92329,3420.8,3420.2,2.9238]
[1721348582992,2.92329,3420.8,3419.9,5.24632]
[1721348582993,2.92327,3420.9,3420.3,2.92371]
[1721348584579,2.9229,3421.3,3420.5,2.92354]
[1721348584784,2.9229,3421.3,3420.7,2.92331]
[1721348585221,2.9227,3421.5,3420.2,2.9238]
[1721348585431,2.92328,3420.9,3420.1,2.92381]
[1721348585802,2.92343,3420.7,3420.1,2.92381]
[1721348586325,2.92391,3420.1,3419.5,2.92433]
[1721348586502,2.92391,3420.1,3419.5,5.84865]
[1721348586701,5.8475,3420.3,3419.6,2.92431]
[1721348586907,3.50856,3420.2,3419.6,2.92431]
[1721348587823,0.58475,3420.2,3419.7,2.92416]
[1721348588123,2.92376,3420.3,3419.7,2.92416]
[1721348588430,2.92396,3420.1,3419.4,5.21415]
[1721348588807,2.92398,3420.0,3419.4,5.21415]
[1721348589341,2.92396,3420.1,3419.5,2.92434]
[1721348589507,2.92377,3420.3,3419.6,2.92429]
[1721348589709,0.592247,3421.6,3420.8,2.92323]
[1721348589921,0.592247,3421.6,3420.3,2.2634]
[1721348590251,2.92285,3421.4,3420.8,2.92322]
[1721348590532,2.92285,3421.4,3420.8,2.92323]
[1721348591521,3.514897,3421.6,3420.6,2.92342]
[1721348591522,0.592247,3421.6,3420.6,2.92342]
[1721348591834,2.92338,3420.7,3420.2,2.92375]
[1721348592132,2.31310468,3420.9,3420.3,2.92371]
[1721348592325,6.29798,3421.2,3420.4,2.92361]
[1721348592326,2.92311,3421.1,3420.4,2.92361]
[1721348592506,6.29798,3421.2,3420.7,2.92337]
[1721348592507,2.92298,3421.2,3420.7,2.92337]
[1721348593032,2.92298,3421.2,3420.6,2.92341]
[1721348593192,7.42,3421.3,3420.9,2.92318]
[1721348593406,2.92282,3421.4,3420.9,2.92318]
[1721348593604,3.0,3421.3,3420.9,2.92318]
[1721348593824,2.92282,3421.4,3420.9,2.92318]
[1721348594157,1.0934707,3421.5,3420.9,2.92314]
[1721348594299,10.34235,3421.9,3420.9,0.309688]
[1721348594630,10.34235,3421.9,3421.3,2.92279]
[1721348595129,7.42,3421.9,3421.4,2.92275]
[1721348595466,7.42,3421.9,3421.6,2.9226]
[1721348595642,2.92224,3422.1,3421.6,2.9226]
[1721348595794,2.92224,3422.1,3421.3,2.92279]
[1721348595795,3.592224,3422.0,3421.5,2.92268]
[1721348595996,3.592224,3422.0,3421.6,2.92255]
[1721348596297,0.592224,3422.0,3421.6,2.92255]
[1721348597535,3.592224,3422.0,3421.6,2.92255]
[1721348598212,3.592224,3422.0,3421.4,2.9227]
[1721348598419,0.6514414,3421.9,3421.5,2.92268]
[1721348598626,2.92195,3422.4,3421.8,2.92238]
[1721348599027,3.0,3422.3,3421.8,2.92238]
[1721348599427,3.0,3422.3,3421.9,2.92234]
[1721348599638,3.0706441,3423.2,3422.5,2.92178]
[1721348599840,5.9919641,3423.2,3422.5,2.92179]
[1721348600021,3.52052641,3423.1,3422.5,2.92179]
[1721348600220,0.59919641,3423.1,3422.6,2.92173]
[1721348600757,0.1493441,3423.2,3423.0,2.9214]
[1721348601147,0.1493441,3423.2,3422.9,2.92149]
[1721348601531,0.1493441,3423.2,3423.1,2.92132]
[1721348602147,2.92146,3423.0,3422.1,2.92212]
[1721348602324,3.0705941,3423.2,3422.4,2.92192]
[1721348602649,0.59916941,3423.1,3422.4,2.92192]
[1721348602861,0.59916941,3423.1,3422.5,2.92178]
[1721348603318,3.52051941,3423.1,3422.3,2.92195]
[1721348603509,2.9215,3422.9,3422.0,2.92224]
[1721348603732,2.9216,3422.8,3422.0,2.92224]
[1721348604118,2.92169,3422.7,3422.0,2.92224]
[1721348604741,2.92176,3422.6,3422.0,2.92224]
[1721348605218,2.92176,3422.6,3421.9,2.2965]
[1721348605448,0.36698435,3423.0,3421.4,2.3586]
[1721348605450,2.92219,3422.1,3421.4,2.3586]
[1721348605901,2.92266,3421.6,3421.4,2.3586]
[1721348605937,2.92266,3421.6,3421.0,2.92311]
[1721348606348,2.92291,3421.3,3420.7,5.28197]
[1721348606361,2.9232,3420.9,3420.3,3.83800252]
[1721348606479,2.9232,3420.9,3420.3,2.92365]